bitfinex/quotes_SOLUSD_20251103
["timestamp","ask_amount","ask_price","bid_price","bid_amount"]
[1762198813520,36.3229673,168.29,168.2,0.7]
[1762198813714,0.68,168.27,168.2,0.7]
[1762198814711,0.68,168.27,168.21,0.14216157]
[1762198814908,0.68,168.28,168.23,5.944243]
[1762198816118,6.62250204,168.28,168.23,5.944243]
[1762198816312,0.68,168.28,168.23,6.644243]
[1762198816920,6.62250664,168.28,168.23,0.7]
[1762198817421,3.96717691,168.28,168.23,0.7]
[1762198817592,0.1,168.3,168.24,0.14216157]
[1762198817796,0.1,168.3,168.26,20.592]
[1762198818002,0.1,168.3,168.27,5.94282997]
[1762198818206,0.1,168.3,168.27,6.64282997]
[1762198818523,0.1,168.3,168.28,0.7]
[1762198818731,0.1,168.3,168.27,5.94282997]
[1762198818732,0.1,168.3,168.27,20.592]
[1762198818898,0.1,168.3,168.27,21.292]
[1762198819897,0.1,168.3,168.27,20.592]
[1762198820127,0.1,168.3,168.29,5.94212371]
[1762198820621,0.1,168.3,168.28,0.7]
[1762198820999,0.1,168.3,168.28,6.64246911]
[1762198821423,0.1,168.3,168.28,5.94246911]
[1762198821602,0.1,168.3,168.28,6.64246911]
[1762198822610,0.1,168.3,168.29,0.7]
[1762198822813,0.1,168.3,168.27,5.94275827]
[1762198822995,0.68,168.29,168.23,5.944243]
[1762198823435,0.68,168.29,168.23,6.644243]
[1762198823698,7.59297738,168.26,168.19,6.64550029]
[1762198824126,14.2164254,168.26,168.19,6.64550029]
[1762198824298,9.78882769,168.25,168.19,6.64550029]
[1762198825523,16.41241742,168.25,168.19,6.64550029]
[1762198826221,10.46882769,168.25,168.19,21.50964203]
[1762198827030,10.46882769,168.25,168.19,6.64550029]
[1762198827406,16.41245633,168.25,168.19,6.64550029]
[1762198827902,16.41245633,168.25,168.13,24.5170359]
[1762198827903,7.59297738,168.2,168.13,24.5170359]
[1762198828102,9.78882769,168.21,168.13,5.94766756]
[1762198828103,7.59297738,168.19,168.13,5.94766756]
[1762198828312,4.90980717,168.19,168.16,20.592]
[1762198828526,5.58980717,168.2,168.16,20.592]
[1762198828704,5.58980717,168.2,168.16,21.252]
[1762198829525,4.90980717,168.19,168.16,21.252]
[1762198829725,5.9435364,168.25,168.16,26.53870159]
[1762198829927,6.52418058,168.29,168.18,0.14216157]
[1762198829928,0.68,168.28,168.18,0.14216157]
[1762198830232,0.68,168.28,168.18,12.50216157]
[1762198830520,9.78882769,168.27,168.19,0.66]
[1762198830960,0.68,168.26,168.19,0.66]
[1762198831104,0.68,168.26,168.2,5.94530321]
[1762198831304,0.68,168.26,168.2,6.60530321]
[1762198831927,6.62322719,168.26,168.2,6.60530321]
[1762198832227,14.69863486,168.25,168.19,20.592]
[1762198832413,5.56980717,168.24,168.19,26.53760948]
[1762198832619,0.66,168.23,168.19,26.53760948]
[1762198833204,9.78882769,168.25,168.19,27.19760948]
[1762198833525,10.44882769,168.26,168.19,5.94560948]
[1762198833826,0.66,168.26,168.2,21.252]
[1762198834236,0.66,168.26,168.21,0.66]
[1762198834436,4.90980717,168.29,168.22,20.592]
[1762198834437,0.66,168.29,168.22,20.592]
[1762198834747,0.1,168.3,168.25,0.14216157]
[1762198834928,0.1,168.3,168.24,32.952]
[1762198835237,0.1,168.3,168.25,5.9435364]
[1762198835429,0.1,168.3,168.25,21.46237741]
[1762198835622,0.1,168.3,168.25,5.9435364]
[1762198835623,0.66,168.29,168.25,5.9435364]
[1762198835828,0.66,168.29,168.23,0.14216157]
[1762198835829,0.66,168.29,168.26,20.592]
[1762198836030,5.56980717,168.29,168.23,26.53599068]
[1762198836223,5.56980717,168.29,168.23,26.53614536]
[1762198836424,0.66,168.29,168.23,6.60414536]
[1762198837123,0.1,168.3,168.24,0.66]
[1762198837330,0.1,168.3,168.25,20.80237741]
[1762198837823,0.1,168.3,168.26,0.66]
[1762198838251,0.76,168.3,168.26,0.66]
[1762198839025,0.1,168.3,168.26,0.66]
[1762198839642,0.1,168.3,168.26,6.60297804]
[1762198839829,0.1,168.3,168.2,0.14216157]
[1762198839830,4.90980717,168.28,168.22,20.592]
[1762198840226,8.88310756,168.28,168.22,0.66]
[1762198840538,5.56980717,168.28,168.22,0.66]
[1762198840717,9.54310756,168.28,168.22,0.66]
[1762198840916,5.56980717,168.28,168.22,0.66]
[1762198841138,9.54310756,168.28,168.22,0.66]
[1762198841336,5.56980717,168.28,168.22,6.60426527]
[1762198841536,4.90980717,168.26,168.19,0.66]
[1762198841739,4.90980717,168.25,168.19,0.66]
[1762198841925,9.54310756,168.26,168.19,6.60565009]
[1762198842134,9.54310756,168.25,168.19,5.94565009]
[1762198842334,5.56980717,168.25,168.19,5.94565009]
[1762198842529,4.90980717,168.2,168.12,0.66]
[1762198842737,3.98558757,168.19,168.13,0.66]
[1762198843045,3.98558757,168.23,168.14,20.592]
[1762198843220,3.98558757,168.22,168.15,20.81474872]
[1762198843420,3.98879609,168.21,168.15,0.66]
[1762198843651,3.98879609,168.2,168.13,38.89951775]
[1762198843836,3.98879609,168.19,168.13,54.42896401]
[1762198844035,3.98879609,168.19,168.14,0.66]
[1762198844233,5.56980717,168.2,168.14,0.66]
[1762198844424,3.99250361,168.19,168.14,0.66]
[1762198844737,5.56980717,168.2,168.14,0.66]
[1762198844940,3.991724,168.19,168.14,0.66]
[1762198845120,4.90980717,168.19,168.14,0.66]
[1762198845323,4.95050043,168.23,168.14,0.66]
[1762198845324,4.95050043,168.23,168.15,41.40674872]
[1762198845543,3.99074461,168.24,168.16,0.80216157]
[1762198845825,3.99074461,168.26,168.18,20.592]
[1762198846139,0.66,168.27,168.19,12.38]
[1762198846334,4.64905235,168.27,168.19,13.04]
[1762198846558,3.98905235,168.26,168.2,0.66]
[1762198846720,4.90980717,168.28,168.2,0.66]
[1762198846925,4.90980717,168.25,168.18,20.592]
[1762198847150,3.99212516,168.24,168.18,20.592]
[1762198847352,6.60287184,168.27,168.2,5.94530321]
[1762198847558,3.99532359,168.26,168.2,5.94530321]
[1762198847738,3.99532359,168.25,168.2,5.94530321]
[1762198847935,3.99532359,168.24,168.2,6.60530321]
[1762198848130,3.99518742,168.25,168.2,6.60530321]
[1762198848442,4.90980717,168.28,168.21,0.66]
[1762198848443,0.66,168.28,168.21,0.66]
[1762198848645,3.99496825,168.27,168.21,21.252]
[1762198848833,3.99496825,168.29,168.22,0.14216157]
[1762198849154,0.1,168.3,168.23,12.38]
[1762198849155,3.99496825,168.28,168.23,12.38]
[1762198849356,0.1,168.3,168.24,20.80361388]
[1762198849357,3.99496825,168.29,168.24,20.80361388]
[1762198849647,0.1,168.3,168.24,21.46361388]
[1762198849947,3.99417043,168.29,168.24,21.46361388]
[1762198850152,0.1,168.3,168.24,21.46361388]
[1762198850331,3.99422328,168.29,168.24,21.46361388]
[1762198850731,3.99422328,168.29,168.25,0.66]
[1762198851230,0.1,168.3,168.25,0.66]
[1762198851430,3.994341,168.29,168.26,5.94318316]
[1762198852150,0.76,168.3,168.26,5.94318316]
[1762198852344,4.754341,168.3,168.26,5.94318316]
[1762198853140,4.094341,168.3,168.27,0.66]
[1762198853346,0.1,168.3,168.28,5.94247682]
[1762198853728,0.1,168.3,168.27,5.94279926]
[1762198853928,0.66,168.29,168.22,0.66]
[1762198854152,4.90980717,168.26,168.18,5.94601022]
[1762198854334,0.66,168.29,168.19,0.66]
[1762198854335,4.90980717,168.25,168.19,0.66]
[1762198854545,4.90980717,168.24,168.19,0.66]
[1762198854848,4.90980717,168.26,168.19,0.66]
[1762198855053,4.90980717,168.25,168.19,0.66]
[1762198855269,8.90414817,168.25,168.19,0.66]
[1762198855429,10.85335426,168.25,168.2,5.94530321]
[1762198855944,5.56980717,168.25,168.2,6.60530321]
[1762198856759,4.65517309,168.25,168.2,6.60530321]
[1762198856931,15.5085785,168.25,168.2,6.60530321]
[1762198857262,5.56980717,168.24,168.2,6.60530321]
[1762198857436,4.90980717,168.23,168.18,5.94601022]
[1762198857764,5.56980717,168.25,168.18,6.60601022]
[1762198857964,4.65550505,168.25,168.18,6.60601022]
[1762198858165,5.94306927,168.27,168.19,0.66]
[1762198858335,3.99531543,168.26,168.19,0.66]
[1762198858537,4.90980717,168.25,168.19,0.66]
[1762198858849,0.66,168.25,168.19,0.66]
[1762198859840,0.66,168.25,168.2,5.94530321]
[1762198860040,4.65531543,168.25,168.2,5.94530321]
[1762198860243,0.66,168.24,168.2,5.94530321]
[1762198860438,0.66,168.24,168.18,0.66]
[1762198860439,5.56980717,168.24,168.18,0.66]
[1762198860749,4.90980717,168.22,168.16,0.66]
[1762198861066,5.56980717,168.21,168.14,12.36]
[1762198861235,5.56980717,168.21,168.11,0.66]
[1762198861236,4.90980717,168.17,168.11,0.66]
[1762198861436,3.99537766,168.2,168.11,0.66]
[1762198861437,4.90980717,168.15,168.11,0.66]
[1762198861652,4.90980717,168.15,168.09,5.94909687]
[1762198861653,4.90980717,168.15,168.09,20.82208158]
[1762198861848,5.94707106,168.15,168.09,0.66]
[1762198862166,4.90980717,168.13,168.07,0.66]
[1762198862345,4.90980717,168.11,168.03,14.87813886]
[1762198862660,4.90980717,168.11,168.04,14.87741014]
[1762198862968,0.67,168.13,168.05,0.69]
[1762198863153,5.57980717,168.13,168.05,0.69]
[1762198863351,4.90980717,168.12,168.05,0.69]
[1762198863658,5.57980717,168.12,168.05,0.69]
[1762198863867,0.67,168.12,168.06,5.95025586]
[1762198864742,5.57980717,168.12,168.06,5.95025586]
[1762198865147,6.61816148,168.12,168.06,5.95025586]
[1762198865356,5.57980717,168.11,168.05,6.64052011]
[1762198865772,15.36863486,168.1,168.04,26.54287664]
[1762198865949,14.69863486,168.08,168.02,5.95150388]
[1762198866150,9.78882769,168.08,168.02,27.23350388]
[1762198866347,6.61851464,168.11,168.03,0.69]
[1762198866648,15.36863486,168.12,168.06,20.592]
[1762198866868,4.90980717,168.11,168.06,20.592]
[1762198867270,4.65378423,168.14,168.02,5.95150388]
[1762198867271,4.90980717,168.08,168.02,5.95150388]
[1762198867575,14.69863486,168.09,168.02,27.23350388]
[1762198867873,15.36863486,168.09,168.02,27.23350388]
[1762198868079,21.31796761,168.09,168.02,27.23350388]
[1762198868251,10.45882769,168.09,168.02,41.42268492]
[1762198868451,5.94853267,168.11,168.02,41.42268492]
[1762198868452,9.78882769,168.1,168.03,0.69]
[1762198868671,10.45882769,168.1,168.03,0.69]
[1762198868850,0.67,168.14,168.05,20.592]
[1762198869055,0.67,168.14,168.06,0.83216157]
[1762198869751,9.78882769,168.16,168.07,20.592]
[1762198869957,9.78882769,168.16,168.09,20.82217859]
[1762198870174,9.78882769,168.15,168.09,5.94919388]
[1762198870378,9.78882769,168.15,168.09,21.51217859]
[1762198870558,0.67,168.16,168.09,21.51217859]
[1762198870752,0.67,168.16,168.09,20.82217859]
[1762198870965,9.78882769,168.15,168.09,5.94919388]
[1762198871168,9.78882769,168.15,168.09,20.82217859]
[1762198871362,9.78882769,168.15,168.09,21.51217859]
[1762198871662,9.78882769,168.18,168.1,0.69]
[1762198871867,10.45882769,168.18,168.1,0.69]
[1762198872070,16.40509321,168.18,168.11,5.94848611]
[1762198872854,0.67,168.17,168.11,5.94848611]
[1762198873061,0.67,168.19,168.12,0.69]
[1762198873264,9.78882769,168.18,168.12,0.69]
[1762198873474,4.90980717,168.22,168.12,0.69]
[1762198873661,5.57980717,168.2,168.12,0.69]
[1762198873972,6.61600932,168.19,168.13,5.9477785]
[1762198874355,0.67,168.19,168.13,5.9477785]
[1762198874978,9.78882769,168.18,168.11,5.94834665]
[1762198875170,9.78882769,168.18,168.11,26.54034665]
[1762198875358,9.78882769,168.16,168.1,6.63881183]
[1762198875561,9.78882769,168.16,168.11,20.592]
[1762198875758,0.67,168.15,168.11,20.592]
[1762198875972,0.67,168.15,168.1,0.69]
[1762198876159,5.94742476,168.14,168.1,0.69]
[1762198876356,5.94742476,168.14,168.08,5.94946449]
[1762198876580,5.94742476,168.14,168.07,12.4]
[1762198876581,5.57980717,168.13,168.07,27.23185347]
[1762198876883,5.57980717,168.13,168.07,6.63985347]
[1762198877268,9.78882769,168.13,168.07,0.69]
[1762198877473,9.78882769,168.15,168.09,20.592]
[1762198877670,6.6163682,168.17,168.09,20.592]
[1762198877985,6.6163682,168.17,168.1,0.69]
[1762198878167,6.6163682,168.17,168.11,5.94848611]
[1762198878470,0.67,168.17,168.11,5.94848611]
[1762198879488,9.78882769,168.16,168.1,6.63880977]
[1762198879791,9.78882769,168.16,168.1,6.63880319]
[1762198879987,4.90980717,168.15,168.09,26.54109501]
[1762198880295,5.94742476,168.14,168.09,20.592]
[1762198880476,5.94742476,168.14,168.09,26.54110782]
[1762198880679,5.57980717,168.14,168.09,27.23110782]
[1762198880881,0.67,168.14,168.09,27.23110782]
[1762198881085,10.45882769,168.13,168.09,26.54110782]
[1762198881598,9.78882769,168.13,168.09,26.54110782]
[1762198881797,10.45882769,168.13,168.09,26.54110782]
[1762198882164,9.78882769,168.12,168.09,26.54110782]
[1762198882590,9.78882769,168.14,168.09,27.23110782]
[1762198882778,10.45882769,168.14,168.09,27.23110782]
[1762198883178,9.78882769,168.15,168.1,0.69]
[1762198883383,9.78882769,168.16,168.1,0.69]
[1762198883785,9.78882769,168.16,168.11,5.94848611]
[1762198884303,3.77801897,168.2,168.12,0.69]
[1762198884476,4.95050043,168.24,168.14,20.592]
[1762198884477,0.67,168.24,168.14,20.592]
[1762198884674,0.67,168.26,168.17,0.14216157]
[1762198885192,3.97260307,168.27,168.2,20.592]
[1762198885397,5.00980717,168.3,168.2,20.592]
[1762198885398,0.67,168.26,168.2,20.592]
[1762198885593,4.90980717,168.23,168.15,0.69]
[1762198885782,4.90980717,168.23,168.18,20.592]
[1762198886106,11.52410585,168.23,168.18,20.592]
[1762198886279,4.90980717,168.19,168.11,0.69]
[1762198886483,4.90980717,168.17,168.09,12.4]
[1762198886683,4.90980717,168.17,168.12,0.69]
[1762198887194,4.90980717,168.19,168.12,21.282]
[1762198887397,5.57980717,168.2,168.12,21.282]
[1762198887694,4.90980717,168.19,168.12,21.282]
[1762198887897,5.60980717,168.19,168.12,21.282]
[1762198888080,9.78882769,168.18,168.12,27.23003097]
[1762198888277,14.69863486,168.18,168.12,27.23003097]
[1762198888477,4.90980717,168.16,168.12,20.592]
[1762198888892,5.60980717,168.16,168.12,20.592]
[1762198889077,5.60980717,168.16,168.12,5.94810991]
[1762198889274,5.60980717,168.16,168.1,6.6385716]
[1762198889480,0.7,168.16,168.1,27.2305716]
[1762198889679,5.60980717,168.16,168.1,27.2305716]
[1762198889894,0.7,168.16,168.1,27.2305716]
[1762198890400,0.7,168.16,168.1,42.10267154]
[1762198891014,14.22446642,168.16,168.1,27.2305716]
[1762198891297,9.78882769,168.15,168.1,27.2305716]
[1762198891502,6.6468007,168.16,168.1,27.2305716]
[1762198891677,9.78882769,168.15,168.1,42.10267154]
[1762198892296,9.78882769,168.15,168.1,41.41267154]
[1762198892498,9.78882769,168.15,168.11,0.72]
[1762198893382,0.7,168.16,168.11,0.72]
[1762198893899,17.36649341,168.15,168.1,26.5405716]
[1762198894197,9.78882769,168.13,168.1,26.54077155]
[1762198894399,9.78882769,168.14,168.1,27.26077406]
[1762198894783,9.78882769,168.16,168.11,0.72]
[1762198895188,0.71,168.15,168.1,26.54077406]
[1762198895790,0.71,168.15,168.12,5.94813228]
[1762198896006,23.3132067,168.17,168.12,5.94813228]
[1762198896186,0.71,168.15,168.12,5.94813228]
[1762198897085,0.71,168.15,168.1,20.592]
[1762198897410,0.71,168.15,168.11,0.72]
[1762198898102,5.94681849,168.16,168.11,0.72]
[1762198898310,0.71,168.15,168.11,0.72]
[1762198898884,6.65732828,168.15,168.1,26.54078744]
[1762198899085,6.65732828,168.15,168.0,20.40843371]
[1762198899086,7.57766572,168.12,168.06,0.72]
[1762198899493,9.78882769,168.12,168.06,0.72]
[1762198899786,9.78882769,168.12,168.08,20.592]
[1762198900190,9.78882769,168.12,168.08,21.312]
[1762198900502,9.78882769,168.12,168.09,5.94919388]
[1762198902409,9.78882769,168.12,168.08,21.312]
[1762198902614,14.49192369,168.12,168.08,21.312]
[1762198903194,10.49882769,168.12,168.09,20.592]
[1762198903715,14.49348474,168.12,168.09,20.592]
[1762198904307,10.49882769,168.12,168.09,20.592]
[1762198904503,10.49882769,168.12,168.09,26.54106823]
[1762198905019,3.99921113,168.11,168.09,20.592]
[1762198905211,16.44709647,168.12,168.09,20.592]
[1762198905414,3.99914248,168.11,168.09,20.592]
[1762198905608,3.99914248,168.11,167.9,40.27809842]
[1762198905609,8.28766572,168.11,168.03,0.72]
[1762198905829,7.57766572,168.08,168.01,5.95202666]
[1762198905993,7.57766572,168.05,168.0,6.15235562]
[1762198906317,21.36462339,168.04,168.0,6.15231958]
[1762198906505,23.31749764,168.04,168.0,6.15231958]
[1762198906704,16.44983192,168.04,168.0,6.87231958]
[1762198906909,18.07649341,168.04,168.0,6.87231958]
[1762198907116,17.36649341,168.04,168.0,6.87231958]
[1762198907320,18.07649341,168.04,168.0,6.87231958]
[1762198907718,10.49882769,168.04,168.0,6.87231958]
[1762198908610,10.49882769,168.04,168.0,6.15231958]
[1762198908815,14.49019011,168.04,168.0,6.15231958]
[1762198909123,10.49882769,168.04,168.0,6.15231958]
[1762198909307,10.49882769,168.04,168.0,6.87231958]
[1762198909914,9.78882769,168.01,168.0,0.2]
[1762198910424,8.28766572,168.03,168.0,0.2]
[1762198910626,9.78882769,168.02,168.0,6.15236675]
[1762198911320,9.78882769,168.02,168.0,0.2]
[1762198912605,10.49882769,168.02,168.0,0.2]
[1762198914526,23.31819864,168.02,168.0,0.2]
[1762198914726,8.28766572,168.01,168.0,0.2]
[1762198914923,8.28766572,168.01,167.94,0.2]
[1762198914924,0.14216157,167.99,167.94,0.2]
[1762198915128,17.36649341,167.95,167.94,0.2]
[1762198915620,18.21865498,167.95,167.94,0.2]
[1762198915825,18.07649341,167.95,167.94,0.2]
[1762198916022,18.21865498,167.95,167.94,0.2]
[1762198916612,24.172808,167.95,167.94,0.2]
[1762198917435,9.78882769,167.91,167.85,0.2]
[1762198917613,17.36649341,167.9,167.85,0.2]
[1762198917814,17.36649341,167.9,167.85,6.8776937]
[1762198918014,17.36649341,167.9,167.85,0.92]
[1762198918015,18.07649341,167.9,167.85,0.92]
[1762198918518,24.03241955,167.9,167.85,0.92]
[1762198918830,24.03241955,167.9,167.85,6.877685]
[1762198919532,9.78882769,167.9,167.87,6.67689217]
[1762198919916,9.78882769,167.9,167.88,5.95651652]
[1762198920731,9.78882769,167.9,167.87,6.67690642]
[1762198921058,18.07649341,167.9,167.86,5.95725386]
[1762198921218,18.07649341,167.9,167.85,0.2]
[1762198921422,24.03241955,167.9,167.85,6.15768616]
[1762198921618,18.07649341,167.9,167.85,6.15768616]
[1762198921824,24.03241955,167.9,167.85,6.15768616]
[1762198922319,24.03241955,167.9,167.85,0.2]
[1762198922914,24.17458112,167.9,167.85,0.2]
[1762198923124,9.78882769,167.86,167.85,0.2]
[1762198923331,17.50865498,167.86,167.75,0.2]
[1762198923517,9.78882769,167.78,167.75,0.88]
[1762198923718,17.36649341,167.84,167.76,0.68]
[1762198924037,9.78882769,167.84,167.76,0.68]
[1762198924230,0.69,167.91,167.78,20.592]
[1762198924431,9.78882769,167.9,167.79,0.82216157]
[1762198924630,9.78882769,167.9,167.8,20.85816447]
[1762198924820,7.57766572,167.88,167.83,20.592]
[1762198925146,9.78882769,167.88,167.83,20.592]
[1762198925344,7.57766572,167.9,167.84,0.68]
[1762198925645,17.36649341,167.88,167.83,20.592]
[1762198925821,18.05649341,167.88,167.83,21.272]
[1762198926012,18.05649341,167.88,167.83,20.592]
[1762198926013,9.78882769,167.86,167.83,20.592]
[1762198926217,9.78882769,167.86,167.8,20.592]
[1762198926437,9.78882769,167.81,167.77,6.64049785]
[1762198926740,7.57766572,167.83,167.79,5.95983074]
[1762198927036,9.78882769,167.84,167.79,5.95983074]
[1762198927236,9.78882769,167.84,167.8,0.68]
[1762198927440,13.5351153,167.86,167.75,0.2]
[1762198927441,9.78882769,167.8,167.75,0.88]
[1762198927643,9.78882769,167.78,167.75,0.88]
[1762198927827,9.78882769,167.78,167.75,6.84116581]
[1762198928033,9.78882769,167.82,167.76,0.68]
[1762198928230,9.78882769,167.82,167.75,0.2]
[1762198928231,9.78882769,167.76,167.75,0.2]
[1762198928741,7.57766572,167.77,167.75,0.2]
[1762198928932,9.78882769,167.78,167.75,0.2]
[1762198929140,6.10165725,167.8,167.75,0.2]
[1762198929141,17.36649341,167.76,167.75,0.2]
[1762198929524,18.05649341,167.76,167.75,0.2]
[1762198930336,18.19865498,167.76,167.75,0.2]
[1762198930846,18.19865498,167.76,167.6,29.8322717]
[1762198930847,9.78882769,167.75,167.64,6.64516344]
[1762198931142,7.57766572,167.71,167.64,0.68]
[1762198931317,9.78882769,167.71,167.65,0.68]
[1762198931718,9.78882769,167.7,167.65,0.68]
[1762198931918,9.78882769,167.7,167.66,5.96445186]
[1762198932143,9.78882769,167.71,167.66,5.96445186]
[1762198932333,17.36649341,167.71,167.66,6.64445186]
[1762198932531,17.36649341,167.71,167.66,0.68]
[1762198933451,17.36649341,167.72,167.66,0.68]
[1762198934159,9.78882769,167.74,167.67,20.87433649]
[1762198934528,9.78882769,167.75,167.68,0.68]
[1762198935045,10.47882769,167.75,167.68,0.68]
[1762198935449,0.69,167.75,167.68,0.68]
[1762198935753,17.36649341,167.74,167.68,0.68]
[1762198935929,7.57766572,167.7,167.65,21.272]
[1762198936129,9.78882769,167.69,167.67,20.592]
[1762198936449,7.57766572,167.7,167.67,20.592]
[1762198936450,9.78882769,167.7,167.67,20.592]
[1762198936751,9.78882769,167.7,167.68,0.68]
[1762198937058,9.78882769,167.72,167.68,0.68]
[1762198937236,9.78882769,167.76,167.68,21.272]
[1762198937556,9.78882769,167.75,167.68,21.272]
[1762198937736,9.78882769,167.75,167.69,0.68]
[1762198938054,9.78882769,167.8,167.73,20.592]
[1762198938268,18.05649341,167.8,167.73,20.592]
[1762198938432,8.26766572,167.79,167.73,20.592]
[1762198939069,9.78882769,167.78,167.73,20.592]
[1762198939240,18.05649341,167.8,167.73,21.272]
[1762198939882,17.36649341,167.78,167.73,21.272]
[1762198940074,9.78882769,167.78,167.74,6.64160724]
[1762198940863,9.78882769,167.79,167.75,0.68]
[1762198941069,17.36649341,167.79,167.73,20.592]
[1762198941266,17.36649341,167.79,167.73,27.23391843]
[1762198941479,17.36649341,167.79,167.74,0.68]
[1762198941779,9.78882769,167.79,167.73,26.55391843]
[1762198942073,9.78882769,167.79,167.71,0.68]
[1762198942074,17.36649341,167.76,167.71,0.68]
[1762198942282,17.36649341,167.76,167.71,6.64264411]
[1762198942474,9.78882769,167.76,167.72,0.68]
[1762198942966,9.78882769,167.77,167.72,0.68]
[1762198943672,17.36649341,167.77,167.72,0.68]
[1762198944061,17.36649341,167.77,167.72,6.6422973]
[1762198944373,9.78882769,167.77,167.72,6.6422973]
[1762198944690,21.282,167.81,167.73,0.68]
[1762198944691,17.36649341,167.79,167.73,0.68]
[1762198944975,17.36649341,167.8,167.73,0.68]
[1762198945284,9.78882769,167.81,167.75,20.592]
[1762198945470,14.39310122,167.81,167.75,20.592]
[1762198945665,9.78882769,167.82,167.76,0.68]
[1762198945866,23.32526511,167.82,167.76,0.68]
[1762198946170,23.32526511,167.82,167.77,5.96054121]
[1762198946375,10.47882769,167.82,167.77,5.96054121]
[1762198946573,4.95050043,167.87,167.77,5.96054121]
[1762198946574,40.94308726,167.85,167.78,0.68]
[1762198946757,17.36649341,167.83,167.78,0.68]
[1762198946961,7.57766572,167.82,167.78,0.68]
[1762198947163,17.36649341,167.8,167.75,21.272]
[1762198947363,17.36649341,167.8,167.75,20.592]
[1762198947566,17.36649341,167.8,167.76,0.66]
[1762198948082,9.78882769,167.78,167.76,0.66]
[1762198948380,0.69,167.82,167.73,0.66]
[1762198948381,9.78882769,167.76,167.73,0.66]
[1762198948579,9.78882769,167.76,167.74,21.252]
[1762198948768,17.36649341,167.79,167.74,21.252]
[1762198948969,17.36649341,167.79,167.75,0.66]
[1762198949475,9.78882769,167.79,167.75,0.66]
[1762198949886,7.57766572,167.81,167.75,0.66]
[1762198950181,13.71366908,167.8,167.75,0.66]
[1762198950481,24.6054704,167.8,167.75,6.62115681]
[1762198950687,20.68062901,167.8,167.75,6.62115681]
[1762198950989,8.86126258,167.79,167.75,0.66]
[1762198951283,9.78882769,167.77,167.75,0.66]
[1762198951981,13.71781165,167.77,167.74,20.592]
[1762198952174,13.71781165,167.77,167.74,27.21352514]
[1762198952380,13.71781165,167.77,167.75,0.66]
[1762198952586,9.78882769,167.78,167.75,0.66]
[1762198952893,9.78882769,167.79,167.75,0.66]
[1762198953069,3.93441458,167.78,167.75,0.66]
[1762198953381,14.72110631,167.79,167.75,0.66]
[1762198953682,3.93743199,167.78,167.75,0.66]
[1762198953886,9.78882769,167.76,167.75,0.66]
[1762198954085,9.78882769,167.78,167.75,0.66]
[1762198954291,9.78882769,167.78,167.76,5.96089651]
[1762198954292,3.94159044,167.77,167.76,5.96089651]
[1762198954480,9.78882769,167.76,167.75,6.62115715]
[1762198954787,9.78882769,167.78,167.75,6.62115715]
[1762198954959,9.78882769,167.76,167.75,6.62115715]
[1762198955369,13.73293181,167.78,167.75,6.62115715]
[1762198955587,9.78882769,167.76,167.75,0.66]
[1762198955788,9.78882769,167.76,167.75,27.21325186]
[1762198955968,9.78882769,167.78,167.75,27.21325186]
[1762198956169,9.78882769,167.76,167.75,27.21325186]
[1762198956782,9.78882769,167.78,167.75,27.21325186]
[1762198956984,3.9483769,167.77,167.75,26.55325186]
[1762198957172,7.17418058,167.84,167.75,26.55325186]
[1762198957173,3.9483769,167.8,167.76,0.14216157]
[1762198957374,3.95429553,167.83,167.76,0.14216157]
[1762198957575,4.95050043,167.87,167.77,0.66]
[1762198957889,9.78882769,167.85,167.81,20.592]
[1762198958188,3.95444863,167.84,167.81,20.592]
[1762198958489,3.95444863,167.83,167.82,0.66]
[1762198958669,3.95444863,167.83,167.82,21.252]
[1762198958988,3.95444863,167.83,167.82,27.21076534]
[1762198959963,3.95444863,167.83,167.82,20.592]
[1762198960288,3.95444863,167.83,167.79,21.252]
[1762198960593,9.78882769,167.81,167.8,0.66]
[1762198960886,13.74327632,167.81,167.79,20.592]